bitfinex-derivatives/quotes_ETHF0:USTF0_20250308
["timestamp","ask_amount","ask_price","bid_price","bid_amount"]
[1741396222896,0.93092,2149.0,2148.9,0.94094]
[1741396223896,0.6563,2149.1,2148.8,1.61953407]
[1741396224101,0.93096,2148.9,2148.8,1.61953407]
[1741396224500,0.6563,2149.1,2148.7,3.2078]
[1741396224802,0.6563,2149.1,2148.6,0.93108]
[1741396224803,0.93101,2148.8,2148.6,0.93108]
[1741396225305,0.93101,2148.8,2148.6,0.14]
[1741396225306,0.93102,2148.8,2148.6,0.14]
[1741396225495,0.93098,2148.9,2148.8,0.931]
[1741396225695,0.66327658,2149.1,2148.5,2.32782]
[1741396225901,0.66327658,2149.1,2148.8,0.93097]
[1741396226203,0.66327658,2149.1,2148.7,3.8684]
[1741396226405,0.93095,2149.0,2148.8,0.93101]
[1741396226903,0.93095,2149.0,2148.7,3.8684]
[1741396226904,0.93101,2148.8,2148.7,3.2078]
[1741396227107,0.93099,2148.9,2148.5,0.6606]
[1741396227401,0.66327658,2149.1,2148.8,0.931]
[1741396227702,0.93094,2149.0,2148.8,0.931]
[1741396228299,0.93094,2149.0,2148.9,0.93096]
[1741396228498,0.93094,2149.0,2148.5,2.98839]
[1741396228499,0.00697658,2149.1,2149.0,0.93092]
[1741396229608,0.00697658,2149.1,2149.0,4.13872]
[1741396229801,0.93079,2149.3,2149.0,4.13872]
[1741396229802,3.2078,2149.6,2149.4,0.93075]
[1741396230002,3.2078,2149.6,2149.0,4.13872]
[1741396230003,3.2078,2149.6,2149.3,0.93077]
[1741396230207,0.9308,2149.3,2149.2,0.93082]
[1741396230607,0.93078,2149.4,2149.3,0.93079]
[1741396231104,0.93074,2149.5,2149.1,0.00697658]
[1741396231311,3.21477658,2149.6,2149.1,0.01697658]
[1741396231506,0.93073,2149.5,2149.3,0.93076]
[1741396231909,0.93073,2149.5,2149.2,0.6421]
[1741396232111,0.93073,2149.5,2149.3,0.93077]
[1741396232407,4.14546658,2149.6,2149.4,0.93075]
[1741396232710,3.21477658,2149.6,2149.3,3.8278]
[1741396233211,0.9307,2149.5,2149.3,3.8278]
[1741396233411,0.9307,2149.5,2149.4,0.93075]
[1741396236710,0.9307,2149.5,2149.3,4.75856]
[1741396236910,3.21477658,2149.6,2149.3,4.75856]
[1741396237211,0.93074,2149.5,2149.3,3.8278]
[1741396237714,0.93074,2149.5,2149.4,0.93075]
[1741396240019,0.00697658,2149.6,2149.3,0.62]
[1741396240215,0.9307,2149.5,2149.3,1.55076]
[1741396240418,0.9307,2149.5,2149.4,0.93075]
[1741396240621,0.00697658,2149.6,2149.3,0.62]
[1741396240919,0.93073,2149.5,2149.4,0.93075]
[1741396242218,0.00697658,2149.6,2149.5,0.9307]
[1741396243117,0.93763658,2149.6,2149.5,0.9307]
[1741396244018,0.00697658,2149.6,2149.5,0.9307]
[1741396247209,0.93763658,2149.6,2149.5,0.9307]
[1741396247920,0.00697658,2149.6,2149.5,0.9307]
[1741396248925,0.93763658,2149.6,2149.5,0.9307]
[1741396249224,0.00697658,2149.6,2149.5,0.9307]
[1741396255329,0.93763658,2149.6,2149.5,0.9307]
[1741396256032,0.00697658,2149.6,2149.5,0.9307]
[1741396257736,0.93763658,2149.6,2149.4,3.8196]
[1741396258034,0.00697658,2149.6,2149.5,0.9307]
[1741396259230,3.21477658,2149.6,2149.3,0.62]
[1741396259530,3.21477658,2149.6,2149.1,0.00697658]
[1741396259531,0.93083,2149.2,2149.1,0.00697658]
[1741396259733,0.93081,2149.3,2149.1,0.93783658]
[1741396259932,0.93083,2149.2,2149.1,0.00697658]
[1741396260928,0.93083,2149.2,2149.1,0.66077658]
[1741396261131,0.93083,2149.2,2149.1,0.00697658]
[1741396261537,0.93096,2148.9,2148.8,0.6538]
[1741396261722,0.93111,2148.6,2148.4,0.93117]
[1741396261927,0.93111,2148.6,2148.5,0.45525058]
[1741396262534,0.93111,2148.6,2148.4,0.93118]
[1741396262832,5.53526,2148.9,2148.3,8.13611]
[1741396263028,0.93112,2148.6,2148.3,8.69611]
[1741396263335,0.93118,2148.4,2148.3,1.9021]
[1741396264132,0.93118,2148.4,2148.3,1.2655]
[1741396264930,3.2078,2148.6,2148.1,0.6542]
[1741396265132,0.93127,2148.2,2148.1,0.6542]
[1741396265928,3.21477658,2148.6,2148.0,3.8239]
[1741396266127,2.32785,2148.5,2148.0,3.8239]
[1741396266336,0.93129,2148.2,2148.0,4.75524]
[1741396267033,0.93129,2148.2,2148.0,3.8239]
[1741396267430,3.21477658,2148.6,2148.0,3.2078]
[1741396267637,0.9313,2148.2,2148.0,3.2078]
[1741396267831,0.9313,2148.2,2148.0,4.13914]
[1741396268037,0.93128,2148.2,2148.0,4.13914]
[1741396268334,3.21477658,2148.6,2148.0,3.2078]
[1741396268537,3.2078,2148.3,2148.0,3.2078]
[1741396268838,2.096,2148.4,2148.0,3.2078]
[1741396269238,0.93131,2148.1,2148.0,3.2078]
[1741396269535,2.096,2148.4,2148.0,3.2078]
[1741396269733,0.9313,2148.2,2148.0,3.2078]
[1741396270039,0.93131,2148.1,2148.0,3.2078]
[1741396270440,4.4769,2148.3,2147.8,1.58562]
[1741396270633,0.93138,2148.0,2147.8,1.58562]
[1741396270834,0.93134,2148.1,2147.9,0.9314]
[1741396271028,0.93139,2148.0,2147.8,1.58562]
[1741396271739,0.6168,2148.2,2147.8,0.6542]
[1741396271740,0.9314,2147.9,2147.8,0.6542]
[1741396272137,0.6168,2148.2,2147.8,0.6542]
[1741396272338,0.93139,2148.0,2147.8,1.58564]
[1741396272534,0.6168,2148.2,2147.8,0.6542]
[1741396272841,0.6168,2148.2,2148.0,0.93133]
[1741396272842,1.54809,2148.2,2148.0,0.93133]
[1741396273032,0.93127,2148.2,2148.0,0.93132]
[1741396273234,0.93127,2148.2,2148.1,0.6354]
[1741396273635,0.93133,2148.1,2147.9,0.93138]
[1741396274035,3.2078,2148.3,2147.8,0.6542]
[1741396274236,0.9314,2147.9,2147.8,0.6542]
[1741396274646,0.93142,2147.9,2147.7,1.55508]
[1741396274940,0.93142,2147.9,2147.7,0.6236]
[1741396275243,0.93144,2147.8,2147.6,4.7776]
[1741396275448,0.93144,2147.8,2147.6,5.4312]
[1741396275833,1.3014,2148.1,2147.6,4.4997]
[1741396275834,0.93143,2147.9,2147.6,4.4997]
[1741396276040,0.93143,2147.9,2147.7,0.93148]
[1741396276239,1.3101,2148.2,2147.6,4.4697]
[1741396276437,3.2078,2148.0,2147.6,4.4697]
[1741396276640,3.2078,2148.0,2147.0,2.096]
[1741396276641,3.2078,2147.7,2147.0,2.096]
[1741396276838,0.6168,2147.9,2147.2,5.0849]
[1741396277144,1.54822,2147.9,2147.5,3.2078]
[1741396277345,0.93146,2147.8,2147.6,1.8771]
[1741396277941,0.93148,2147.7,2147.6,0.6218]
[1741396278639,1.54822,2147.9,2147.6,2.80861]
[1741396279040,4.13917,2148.0,2147.8,0.93144]
[1741396279246,0.93141,2147.9,2147.7,0.93148]
[1741396279442,3.4061,2148.2,2147.7,0.93146]
[1741396279649,0.93142,2147.9,2147.7,0.93146]
[1741396279842,0.93135,2148.1,2147.8,0.93143]
[1741396280047,3.8246,2148.3,2147.6,1.8771]
[1741396280246,3.8246,2148.3,2147.9,0.93136]
[1741396280247,0.9313,2148.2,2147.9,0.93136]
[1741396280549,0.9313,2148.2,2148.0,2.83595]
[1741396280851,3.8246,2148.3,2148.0,1.9046]
[1741396281153,0.93128,2148.2,2148.0,2.83592]
[1741396281343,4.13905,2148.3,2148.0,2.83592]
[1741396281545,0.93131,2148.1,2148.0,1.9046]
[1741396281739,0.9313,2148.2,2148.0,1.9046]
[1741396281938,0.9313,2148.2,2148.0,2.83594]
[1741396282251,0.9313,2148.2,2148.0,1.9046]
[1741396282445,0.9313,2148.2,2148.0,2.83595]
[1741396282650,0.93131,2148.1,2148.0,0.6471]
[1741396283346,0.9313,2148.2,2148.0,0.6471]
[1741396283548,0.93131,2148.1,2148.0,0.6471]
[1741396283940,0.93143,2147.9,2147.7,2.20338]
[1741396284149,0.93143,2147.9,2147.7,2.86728]
[1741396284349,0.93144,2147.8,2147.7,1.9358]
[1741396284545,3.8147,2148.3,2147.7,1.9358]
[1741396285249,0.93141,2147.9,2147.7,2.86725]
[1741396286052,0.93134,2148.1,2147.9,0.9314]
[1741396286254,4.13905,2148.3,2147.9,3.2078]
[1741396286546,3.2078,2148.3,2148.2,0.93127]
[1741396286746,3.2078,2148.3,2147.9,3.2078]
[1741396286946,4.13903,2148.3,2148.1,0.93129]
[1741396287147,4.13903,2148.3,2148.2,1.2863]
[1741396287346,4.13903,2148.3,2148.2,1.8908]
[1741396287749,0.93117,2148.5,2148.2,1.8908]
[1741396287948,0.93117,2148.5,2148.3,0.93121]
[1741396288148,3.21477658,2148.6,2148.2,1.8908]
[1741396288355,0.93116,2148.5,2148.3,0.93122]
[1741396288652,0.93116,2148.5,2148.3,0.93121]
[1741396288850,3.21477658,2148.6,2148.2,1.8908]
[1741396289053,0.9312,2148.4,2148.2,2.82206]
[1741396289648,0.9312,2148.4,2148.3,0.93122]
[1741396289853,3.21477658,2148.6,2148.3,0.93122]
[1741396290050,0.9312,2148.4,2148.2,2.82203]
[1741396290256,0.9312,2148.4,2148.3,0.93122]
[1741396290549,0.00697658,2148.6,2148.2,5.0986]
[1741396290750,0.93809658,2148.6,2148.4,0.93116]
[1741396290958,0.00697658,2148.6,2148.5,0.93114]
[1741396291149,0.00697658,2148.6,2148.2,5.0986]
[1741396291349,0.9312,2148.4,2148.2,5.0986]
[1741396291554,0.9312,2148.4,2148.2,6.02984]
[1741396292459,0.9312,2148.4,2148.2,5.0986]
[1741396292649,0.93116,2148.5,2148.2,5.0986]
[1741396292851,0.93811658,2148.6,2148.4,0.93116]
[1741396293150,0.9312,2148.4,2148.3,0.93121]
[1741396293749,0.9312,2148.4,2148.2,5.0986]
[1741396293951,0.00697658,2148.6,2148.2,5.0986]
[1741396294260,0.9312,2148.4,2148.2,1.8908]
[1741396294457,0.9312,2148.4,2148.2,2.82204]
[1741396295061,0.9312,2148.4,2148.2,2.82203]
[1741396295253,0.00697658,2148.6,2148.3,0.93121]
[1741396295452,0.9312,2148.4,2148.2,1.8908]
[1741396295651,0.9312,2148.4,2148.3,0.93122]
[1741396295857,0.9312,2148.4,2148.2,2.82204]
[1741396296063,0.93122,2148.3,2148.2,1.8908]
[1741396296455,0.93122,2148.3,2148.2,1.25]
[1741396298465,0.93122,2148.3,2148.2,2.18127]
[1741396298761,0.93122,2148.3,2148.2,1.25]
[1741396300063,2.32809,2148.3,2147.9,3.2078]
[1741396300265,0.9314,2147.9,2147.8,1.2424]
[1741396302261,0.9314,2147.9,2147.8,0.6295]
[1741396309164,3.2078,2147.9,2147.6,0.6392]
[1741396309370,0.93148,2147.7,2147.6,0.6392]
[1741396309667,0.93148,2147.7,2147.6,1.57073]
[1741396310867,3.2078,2147.9,2147.6,0.6392]
[1741396311166,0.93144,2147.8,2147.7,0.93148]
[1741396311366,0.93148,2147.7,2147.6,1.57072]
[1741396311569,3.2078,2147.9,2147.7,0.93147]
[1741396311970,0.93147,2147.8,2147.6,1.57069]
[1741396312170,0.93147,2147.8,2147.6,0.6392]
[1741396312372,3.2078,2147.9,2147.6,0.6392]
[1741396312571,0.93148,2147.7,2147.6,1.57072]
[1741396313264,3.2078,2147.9,2147.6,0.6392]
[1741396313465,0.93146,2147.8,2147.6,0.6392]
[1741396313664,0.93146,2147.8,2147.6,1.5707]
[1741396314171,0.93148,2147.7,2147.6,0.6392]
[1741396315774,0.93153,2147.6,2147.5,3.8525]
[1741396315981,0.93153,2147.6,2147.5,3.2078]
[1741396319678,0.93166,2147.3,2147.2,0.93168]
[1741396319876,3.2078,2147.6,2147.1,1.9354]
[1741396320078,0.9317,2147.2,2147.1,2.86714]
[1741396320273,0.9317,2147.2,2147.0,0.93176]
[1741396320474,0.93181,2147.0,2146.9,0.93183]
[1741396321479,0.93182,2147.0,2146.9,0.93182]
[1741396321874,0.93182,2147.0,2146.8,1.54214]
[1741396322878,7.63295,2147.3,2146.8,0.6103]
[1741396322879,0.93183,2146.9,2146.8,0.6103]
[1741396324070,0.6226,2147.1,2146.8,0.6103]
[1741396324270,0.93173,2147.2,2146.8,0.6103]
[1741396324477,3.02768,2147.3,2147.1,0.93173]
[1741396324780,0.00697658,2147.5,2147.2,1.9108]
[1741396325078,0.93163,2147.4,2147.2,2.84249]
[1741396325279,0.93164,2147.4,2147.2,2.84248]
[1741396325774,0.93857658,2147.5,2147.2,2.84248]
[1741396325980,0.93857658,2147.5,2147.3,0.93165]
[1741396326182,0.93163,2147.4,2147.2,2.84248]
[1741396326373,0.93855658,2147.5,2147.3,0.93166]
[1741396327983,0.93161,2147.4,2147.3,0.93166]
[1741396328280,0.93163,2147.4,2147.2,1.9108]
[1741396328481,0.93166,2147.3,2147.2,1.2865]
[1741396328981,0.642,2147.4,2146.9,0.639]
[1741396328982,0.93179,2147.0,2146.9,0.639]
[1741396329475,3.2078,2147.2,2146.9,0.639]
[1741396329682,0.93174,2147.1,2146.9,1.57082]
[1741396329887,3.2078,2147.2,2146.9,1.57082]
[1741396329888,0.93179,2147.0,2146.9,0.639]
[1741396330375,0.93179,2147.0,2146.4,2.33013]
[1741396330376,0.80039191,2147.1,2146.1,3.2078]
[1741396330578,3.2078,2147.2,2146.3,0.6311]
[1741396330579,3.2078,2146.7,2146.3,0.6311]
[1741396330879,3.2078,2146.7,2146.3,1.2551]
[1741396331075,0.93209,2146.3,2146.2,0.6658]
[1741396331276,0.93214,2146.2,2146.1,3.2078]
[1741396331474,0.93222,2146.0,2145.9,0.6311]
[1741396331979,0.93232,2145.8,2145.4,3.2078]
[1741396332279,3.2078,2145.7,2145.1,0.93259]
[1741396332480,3.2078,2145.7,2145.0,3.2078]
[1741396332481,3.2078,2145.4,2145.0,3.2078]
[1741396332682,0.93242,2145.6,2145.0,3.3178]
[1741396332877,5.3038,2145.7,2145.0,5.64943]
[1741396333077,5.3038,2145.7,2145.1,0.624]
[1741396333283,5.3038,2145.7,2145.1,0.814]
[1741396333481,6.23618,2145.7,2145.3,0.93251]
[1741396333684,5.3038,2145.7,2145.3,0.9325]
[1741396333885,5.3038,2145.7,2145.1,0.624]
[1741396334081,6.23619,2145.7,2145.3,0.93253]
[1741396334290,5.3038,2145.7,2145.0,0.93263]
[1741396334588,0.93257,2145.3,2145.0,0.18]
[1741396334885,0.93257,2145.3,2145.0,1.11265]
[1741396335091,0.93257,2145.3,2145.0,0.18]
[1741396335480,0.6656,2145.6,2145.0,0.93264]
[1741396335782,0.93249,2145.4,2145.0,0.93262]
[1741396336481,0.93247,2145.5,2145.1,0.93258]
[1741396336681,0.6656,2145.6,2145.2,0.93254]
[1741396336883,0.00697658,2145.5,2145.3,0.93253]
[1741396337186,0.00697658,2145.5,2145.4,0.93248]
[1741396337889,3.2078,2146.0,2145.5,2.33111]
[1741396338088,3.2078,2146.0,2145.9,0.93227]
[1741396338288,0.9321,2146.3,2145.7,3.2078]
[1741396338500,2.097,2146.4,2146.2,0.93213]
[1741396338885,2.097,2146.4,2145.7,5.53861]
[1741396339094,3.2078,2146.5,2146.4,0.93205]
[1741396339095,0.00697658,2146.5,2146.4,0.93205]
[1741396340585,0.00697658,2146.5,2146.4,1.66195]
[1741396340781,3.2078,2146.9,2146.8,0.93188]
[1741396340994,3.2078,2146.9,2146.4,3.75895]
[1741396340995,3.2078,2146.9,2146.4,2.7569]
[1741396341189,4.13965,2146.9,2146.4,2.7569]
[1741396341389,4.13965,2146.9,2146.6,0.93195]
[1741396341584,3.2078,2146.9,2146.4,2.7569]
[1741396341893,3.21477658,2146.9,2146.7,0.93192]
[1741396342088,3.21477658,2146.9,2146.6,0.93194]
[1741396342285,0.93882658,2146.9,2146.6,0.93194]
[1741396342486,0.00697658,2146.9,2146.6,0.93194]
[1741396342681,0.00697658,2146.9,2146.4,2.7569]
[1741396342891,0.00697658,2146.9,2146.7,0.9319]
[1741396343294,0.00697658,2146.9,2146.6,0.93193]
[1741396343596,0.93882658,2146.9,2146.6,0.93193]
[1741396343796,3.21477658,2146.9,2146.4,0.6599]
[1741396343991,3.21477658,2146.9,2146.7,0.93189]
[1741396344289,0.00697658,2146.9,2146.5,0.6517]
[1741396344592,0.00697658,2146.9,2146.8,0.93188]
[1741396344795,0.93168,2147.3,2147.0,0.93177]
[1741396345295,0.93171,2147.2,2146.9,0.93181]
[1741396345597,0.93171,2147.2,2146.7,2.097]
[1741396345598,6.5783,2147.5,2146.7,2.097]
[1741396345894,0.00697658,2147.3,2146.9,3.2078]
[1741396346197,0.93172,2147.2,2146.9,4.13962]
[1741396346893,0.00697658,2147.3,2146.9,3.2078]
[1741396347098,0.93171,2147.2,2146.9,4.13959]
[1741396347298,0.00697658,2147.3,2147.0,0.93178]
[1741396347491,0.93864658,2147.3,2147.0,0.93178]
[1741396347791,0.93172,2147.2,2146.9,3.2078]
[1741396347996,0.93866658,2147.3,2146.9,3.2078]
[1741396348190,0.93866658,2147.3,2147.1,0.93174]
[1741396348390,0.00697658,2147.3,2147.0,0.93177]
[1741396348589,0.93866658,2147.3,2147.0,0.93177]
[1741396348898,0.93171,2147.2,2147.0,0.93177]
[1741396349099,0.00697658,2147.3,2147.0,0.93177]
[1741396349296,0.00697658,2147.3,2147.1,0.93173]
[1741396349297,0.93863658,2147.3,2147.1,0.93173]
[1741396349891,0.93865658,2147.3,2147.1,0.93173]
[1741396350096,0.93865658,2147.3,2147.1,0.93174]
[1741396350097,0.93866658,2147.3,2147.1,0.93174]
[1741396352200,0.93172,2147.2,2147.0,0.93176]
[1741396353205,0.00697658,2147.3,2146.8,3.2078]
[1741396353403,0.93863658,2147.3,2147.1,0.93171]
[1741396353900,0.93863658,2147.3,2146.8,3.2078]
[1741396353901,0.00697658,2147.3,2147.2,0.9317]
[1741396356608,3.2078,2148.1,2147.4,2.329]
[1741396356795,0.9314,2147.9,2147.7,0.93146]
[1741396357099,0.93138,2148.0,2147.6,0.6159]
[1741396357290,3.2078,2148.1,2147.6,1.2727]
[1741396357494,0.93123,2148.3,2148.1,0.93129]
[1741396357690,3.83127658,2148.4,2148.0,0.00697658]
[1741396357999,0.93131,2148.1,2148.0,0.00697658]
[1741396360795,4.48997658,2148.4,2148.0,0.00697658]
[1741396361013,3.83127658,2148.4,2148.0,0.00697658]
[1741396361197,0.93129,2148.2,2148.0,0.93830658]
[1741396361605,0.93124,2148.3,2148.1,0.93127]
[1741396361902,4.14597658,2148.4,2148.2,0.93125]
[1741396362200,3.21477658,2148.4,2148.0,0.00697658]
[1741396362598,0.93129,2148.2,2148.0,0.93830658]
[1741396362801,0.93131,2148.1,2148.0,0.00697658]
[1741396362996,0.9313,2148.2,2148.0,0.93831658]
[1741396363396,0.93817658,2148.4,2148.2,0.93123]
[1741396363701,0.00697658,2148.4,2148.2,0.93123]
[1741396363893,0.00697658,2148.4,2148.3,0.93122]
[1741396364291,4.13874,2149.0,2148.8,0.93101]
[1741396364504,3.2078,2149.0,2148.5,3.2078]
[1741396364699,0.93093,2149.0,2148.8,0.93098]
[1741396364904,6.5724,2149.3,2148.9,0.93096]
[1741396365203,0.93088,2149.1,2148.9,0.93096]
[1741396365399,0.9309,2149.1,2148.8,0.93099]
[1741396365600,4.14558658,2149.3,2149.0,0.93089]
[1741396365905,3.21477658,2149.3,2148.9,0.6326]
[1741396366102,3.21477658,2149.3,2149.2,0.93083]
[1741396366298,3.21477658,2149.3,2149.1,0.93085]
[1741396366801,3.21477658,2149.3,2149.2,0.93083]
[1741396367006,0.00697658,2149.3,2149.2,0.93083]
[1741396367206,0.00697658,2149.3,2149.2,1.56303]
[1741396370812,0.00697658,2149.3,2149.1,4.13865]
[1741396371209,0.00697658,2149.3,2149.1,3.2078]
[1741396371504,0.00697658,2149.3,2149.1,4.13865]
[1741396372213,0.00697658,2149.3,2149.1,4.48685542]
[1741396372513,0.00697658,2149.3,2149.2,0.93083]
[1741396377413,0.00697658,2149.3,2148.9,1.2562]
[1741396377414,3.21477658,2149.3,2148.9,1.2562]
[1741396377612,3.21477658,2149.3,2148.8,3.55541088]
[1741396377914,0.93094,2149.0,2148.8,4.13879]
[1741396378113,0.93096,2148.9,2148.8,3.2078]
[1741396378514,3.85417658,2149.3,2148.8,3.2078]
[1741396378712,0.00697658,2149.3,2148.9,0.93096]
[1741396378916,0.93091,2149.1,2148.9,0.93096]
[1741396379115,0.93091,2149.1,2148.8,3.2078]
[1741396379116,3.21477658,2149.3,2148.8,3.2078]
[1741396379316,0.93096,2148.9,2148.8,3.2078]
[1741396379621,0.93095,2149.0,2148.8,4.1388]
[1741396380117,0.93095,2149.0,2148.8,0.931]
[1741396380318,0.93105,2148.7,2148.6,1.28822451]
[1741396380516,2.32709,2149.2,2148.6,1.28822451]
[1741396380712,0.93102,2148.8,2148.6,1.28822451]
[1741396381413,2.32724,2149.1,2148.5,4.496]
[1741396381610,2.32724,2149.1,2148.0,0.00697658]
[1741396381611,3.2078,2148.7,2148.0,0.00697658]
[1741396381816,1.2751,2148.6,2148.2,0.93125]
[1741396382111,1.2751,2148.6,2148.2,3.2078]
[1741396382311,0.93116,2148.5,2148.3,0.93122]
[1741396382713,1.2751,2148.6,2148.3,0.93122]
[1741396382906,2.108,2148.7,2148.2,3.2078]
[1741396383111,0.93111,2148.6,2148.4,0.93117]
[1741396383722,2.108,2148.7,2148.4,0.93117]
[1741396384015,0.9311,2148.6,2148.4,0.93117]
[1741396384222,0.93112,2148.6,2148.4,0.93117]
[1741396385215,0.93112,2148.6,2148.3,0.6629]
[1741396385216,0.93116,2148.5,2148.3,1.59411]
[1741396386018,2.108,2148.7,2148.3,0.6629]
[1741396386218,2.108,2148.7,2148.2,4.13904]
[1741396386219,7.64347,2148.7,2148.2,3.2078]
[1741396386418,5.3158,2148.7,2148.2,4.13904]
[1741396387311,0.9311,2148.6,2148.4,0.93115]
[1741396387713,4.4848,2149.0,2148.3,0.6126]
[1741396387919,0.93098,2148.9,2148.7,0.93104]
[1741396388519,0.93102,2148.8,2148.6,0.93107]
[1741396388820,0.93096,2149.0,2148.8,0.93098]
[1741396389023,0.6082,2149.2,2148.5,3.2078]
[1741396389319,0.93094,2149.0,2148.8,0.93101]
[1741396389707,0.6082,2149.2,2148.6,0.6453]
[1741396389907,0.93099,2148.9,2148.7,0.93105]
[1741396390619,0.93099,2148.9,2148.6,1.57636]
[1741396390818,0.93099,2148.9,2148.7,0.93105]
[1741396391224,0.93096,2148.9,2148.7,0.93105]
[1741396391715,0.6082,2149.2,2148.6,0.6453]
[1741396391911,0.93105,2148.7,2148.6,0.6453]
[1741396392111,0.93118,2148.4,2148.3,1.2685]
[1741396392312,0.93122,2148.3,2148.2,0.6635]
[1741396395018,0.93131,2148.1,2147.9,2.7533]
[1741396395322,0.9313,2148.2,2148.0,1.29185415]
[1741396395924,0.9313,2148.2,2148.0,0.36052415]
[1741396396221,0.9313,2148.2,2148.0,1.29184415]
[1741396397011,3.2078,2148.4,2148.0,0.00697658]
[1741396397012,0.93131,2148.1,2148.0,0.00697658]
[1741396397320,0.93146,2147.8,2147.6,1.91557965]
[1741396397516,0.93146,2147.8,2147.6,2.61227965]
[1741396398425,0.93147,2147.8,2147.6,2.61227965]
[1741396399823,0.00697658,2147.9,2147.6,1.68075965]
[1741396399824,0.93148,2147.7,2147.6,1.68075965]
[1741396400216,0.93146,2147.8,2147.6,2.61226965]
[1741396402028,0.00697658,2147.9,2147.6,1.68075965]
[1741396402221,0.93145,2147.8,2147.6,2.61226965]
[1741396403428,0.00697658,2147.9,2147.6,1.68075965]
[1741396403630,0.93148,2147.8,2147.6,1.68075965]
[1741396403927,0.93148,2147.8,2147.6,2.61227965]
[1741396404733,0.00697658,2147.9,2147.6,1.68075965]
[1741396405023,0.00697658,2147.9,2147.8,0.93144]
[1741396405225,0.93147,2147.8,2147.6,2.58227965]
[1741396405419,0.93147,2147.8,2147.6,1.75075965]
[1741396405618,0.93147,2147.8,2147.6,2.68228965]
[1741396405832,0.93147,2147.8,2147.6,1.75075965]
[1741396406041,0.00697658,2147.9,2147.6,1.75075965]
[1741396406236,0.93146,2147.8,2147.6,2.68228965]
[1741396406925,0.93146,2147.8,2147.6,1.75075965]
[1741396407147,0.00697658,2147.9,2147.6,0.44325965]
[1741396407426,0.93148,2147.7,2147.6,0.34325965]
[1741396407631,0.93153,2147.6,2147.5,1.31557658]
[1741396410233,0.93153,2147.6,2147.5,2.24714658]
[1741396410536,0.93153,2147.6,2147.5,1.31557658]
[1741396412938,0.93153,2147.6,2147.5,0.65747658]
[1741396413132,0.93153,2147.6,2147.5,0.00697658]
[1741396413435,0.93174,2147.1,2146.7,22.7538]
[1741396413738,2.32883,2147.6,2147.0,3.2078]
[1741396413739,0.93169,2147.3,2147.0,3.2078]
[1741396414036,0.93173,2147.2,2147.0,3.2078]
[1741396414634,0.93173,2147.2,2147.0,4.13957]
[1741396415641,2.97918,2147.5,2147.0,3.2078]
[1741396415842,0.93172,2147.2,2147.0,4.13957]
[1741396416137,0.93169,2147.3,2147.1,0.93173]
[1741396416439,0.6502,2147.5,2147.0,3.2078]
[1741396416636,0.93153,2147.6,2147.4,0.93159]
[1741396416836,0.93153,2147.6,2147.5,1.2509]
[1741396417233,3.21477658,2147.9,2147.5,1.2509]
[1741396417437,0.9315,2147.7,2147.5,2.18245]
[1741396418334,0.93146,2147.8,2147.6,0.93151]
[1741396418539,3.21477658,2147.9,2147.5,1.2509]
[1741396418739,0.93152,2147.7,2147.5,2.18245]
[1741396419335,0.93153,2147.6,2147.5,1.2509]
[1741396420739,0.93151,2147.7,2147.5,2.18247]
[1741396421050,0.93153,2147.6,2147.5,0.6068]
[1741396421240,0.93166,2147.3,2147.2,1.2771]
[1741396421641,0.93174,2147.1,2147.0,3.2078]
[1741396423340,2.94542,2147.4,2146.9,0.62597658]
[1741396423341,3.2078,2147.3,2146.9,0.00697658]
[1741396423539,4.76319,2147.0,2146.9,0.00697658]
[1741396425234,4.76319,2147.0,2146.9,6.58e-06]
[1741396425640,5.64215011,2147.0,2146.9,6.58e-06]
[1741396425844,9.64215011,2147.0,2146.9,6.58e-06]
[1741396426142,10.54055843,2147.0,2146.9,6.58e-06]
[1741396428139,9.60876843,2147.0,2145.8,3.869]
[1741396428445,3.2078,2146.5,2145.8,3.899]
[1741396428646,0.93216,2146.2,2145.9,0.93222]
[1741396428850,0.93216,2146.2,2146.0,0.93221]
[1741396429040,0.93222,2146.0,2145.8,4.80128]
[1741396429349,0.00697658,2146.1,2145.9,0.93225]
[1741396429551,0.93915658,2146.1,2145.9,0.93225]
[1741396430345,0.93915658,2146.1,2145.8,0.6612]
[1741396430346,0.00697658,2146.1,2146.0,0.93222]
[1741396432238,0.93193,2146.7,2146.0,0.01]
[1741396432444,0.93193,2146.7,2146.4,0.93203]
[1741396432852,0.93185,2146.9,2146.6,0.93194]
[1741396433052,0.93185,2146.9,2146.7,0.93192]
[1741396433441,0.00697658,2147.0,2146.4,3.2078]
[1741396433643,0.00697658,2147.0,2146.8,0.93185]
[1741396435344,0.00697658,2147.0,2146.6,1.2284]
[1741396435645,3.2078,2146.7,2146.3,0.93206]
[1741396435950,3.2078,2146.7,2145.9,0.6135]
[1741396436154,0.9321,2146.3,2146.0,0.93219]
[1741396436348,0.6341,2146.6,2145.9,0.6135]
[1741396436551,0.93202,2146.5,2146.3,0.93209]
[1741396436749,0.93211,2146.3,2146.1,0.93215]
[1741396437052,1.56608,2146.6,2146.4,0.93203]
[1741396437249,3.2078,2146.7,2146.2,2.102]
[1741396437452,0.93877658,2147.0,2146.8,0.93187]
[1741396437753,0.93189,2146.8,2146.6,0.93194]
[1741396438544,0.93186,2146.9,2146.6,0.93196]
[1741396438746,0.00697658,2147.0,2146.5,0.6455]
[1741396439047,0.00697658,2147.0,2146.7,0.93191]
[1741396439048,0.93183,2146.9,2146.7,0.93191]
[1741396439247,0.93183,2146.9,2146.5,0.6455]
[1741396439446,0.93183,2146.9,2146.7,0.9319]
[1741396439651,0.00697658,2147.0,2146.7,0.9319]
[1741396439851,0.93876658,2147.0,2146.8,0.93186]